fUST/lending_fUST_20240125
["ID","MTS","AMOUNT","RATE_DAILY","PERIOD"]
[312653819,1706138109919,-500.0,0.00049589,120]
[312653820,1706138109941,-500.0,0.00049589,120]
[312653821,1706138109966,-525.48,0.00049589,120]
[312653822,1706138109990,-500.0,0.00049589,120]
[312653823,1706138110014,-1064.19,0.00049589,120]
[312653824,1706138110037,-500.0,0.00049589,120]
[312653825,1706138110060,-500.0,0.00049589,120]
[312653826,1706138110083,-500.0,0.00049589,120]
[312653827,1706138110107,-500.0,0.00049589,120]
[312653828,1706138110130,-500.0,0.00049589,120]
[312653829,1706138110153,-500.0,0.00049589,120]
[312653830,1706138110180,-593.16,0.00049589,120]
[312653831,1706138110203,-500.0,0.00049589,120]
[312653832,1706138110228,-500.0,0.00049589,120]
[312653833,1706138110254,-500.0,0.00049589,120]
[312653834,1706138110279,-500.0,0.00049589,120]
[312653835,1706138110304,-1350.89,0.00049589,120]
[312653836,1706138110327,-1635.66,0.00049589,120]
[312653837,1706138110354,-500.0,0.00049589,120]
[312653838,1706138110378,-256.53449346,0.00049589,120]
[312653839,1706138110400,-505.7637884,0.00049589,120]
[312653840,1706138110426,-2252.64,0.00049589,120]
[312653841,1706138110449,-848.83,0.00049589,120]
[312653842,1706138110472,-500.0,0.00049589,120]
[312653843,1706138110495,-500.0,0.00049589,120]
[312653844,1706138110518,-500.0,0.00049589,120]
[312653845,1706138110541,-500.0,0.00049589,120]
[312653846,1706138110565,-500.0,0.00049589,120]
[312653847,1706138110588,-1911.98,0.00049589,120]
[312653848,1706138110611,-500.0,0.00049589,120]
[312653849,1706138110633,-502.75,0.00049589,120]
[312653850,1706138110656,-500.0,0.00049589,120]
[312653851,1706138110681,-840.87,0.00049589,120]
[312653852,1706138110704,-983.25,0.00049589,120]
[312653853,1706138110727,-543.83,0.00049589,120]
[312653854,1706138110750,-1320.33,0.00049589,120]
[312653855,1706138110772,-500.0,0.00049589,120]
[312653856,1706138110795,-500.0,0.00049589,120]
[312653857,1706138110818,-500.0,0.00049589,120]
[312653858,1706138110841,-3361.98,0.00049589,120]
[312653859,1706138110864,-500.0,0.00049589,120]
[312653860,1706138110887,-500.0,0.00049589,120]
[312653861,1706138110910,-500.0,0.00049589,120]
[312653862,1706138110932,-302.1486778,0.00049589,120]
[312653863,1706138110956,-500.0,0.00049589,120]
[312653864,1706138111058,-500.0,0.00049589,120]
[312653865,1706138111082,-500.0,0.00049589,120]
[312653866,1706138111106,-500.0,0.00049589,120]
[312653867,1706138111130,-500.0,0.00049589,120]
[312653868,1706138111154,-95.02179427,0.00049589,120]
[312653869,1706138116638,-500.0,0.00049315,120]
[312653870,1706138116661,-500.0,0.00049315,120]
[312653871,1706138116685,-500.0,0.00049315,120]
[312653872,1706138116708,-500.0,0.00049315,120]
[312653873,1706138116732,-500.0,0.00049315,120]
[312653874,1706138116756,-404.97820573,0.00049589,120]
[312653875,1706138116778,-500.0,0.00049589,120]
[312653876,1706138116801,-500.0,0.00049589,120]
[312653877,1706138116823,-933.63,0.00049589,120]
[312653878,1706138116846,-500.0,0.00049589,120]
[312653879,1706138116869,-500.0,0.00049589,120]
[312653880,1706138116892,-500.0,0.00049589,120]
[312653881,1706138116914,-500.0,0.00049589,120]
[312653882,1706138116939,-569.81,0.00049589,120]
[312653883,1706138116961,-519.09,0.00049589,120]
[312653884,1706138116983,-771.42,0.00049589,120]
[312653885,1706138117006,-177.86965843,0.00049589,120]
[312653886,1706138117029,-500.0,0.00049589,120]
[312653887,1706138117052,-500.0,0.00049589,120]
[312653888,1706138117074,-500.0,0.00049589,120]
[312653889,1706138117097,-214.15871867,0.00049589,120]
[312653890,1706138117119,-500.0,0.00049589,120]
[312653891,1706138117144,-500.0,0.00049589,60]
[312653892,1706138117168,-500.0,0.00049589,120]
[312653893,1706138117193,-500.0,0.00049589,120]
[312653894,1706138117217,-575.86921553,0.00049589,120]
[312653895,1706138117240,-597.33,0.00049589,120]
[312653896,1706138117266,-500.0,0.00049589,120]
[312653897,1706138117289,-500.0,0.00049589,120]
[312653898,1706138117313,-500.0,0.00049589,120]
[312653899,1706138117337,-679.43,0.00049589,120]
[312653900,1706138117360,-500.0,0.00049589,120]
[312653901,1706138117384,-261.6854121,0.00049589,120]
[312653902,1706138117408,-500.0,0.00049589,120]
[312653903,1706138117432,-500.0,0.00049589,120]
[312653904,1706138117455,-498.28277142,0.00049589,120]
[312653905,1706138117479,-500.0,0.00049589,120]
[312653906,1706138117502,-500.0,0.00049589,120]
[312653907,1706138117525,-500.0,0.00049589,120]
[312653908,1706138117549,-541.66,0.00049589,120]
[312653909,1706138117574,-500.0,0.00049589,120]
[312653910,1706138117598,-500.0,0.00049589,120]
[312653911,1706138117623,-735.65,0.00049589,120]
[312653912,1706138117646,-554.29,0.00049589,120]
[312653913,1706138117670,-500.0,0.00049589,120]
[312653914,1706138117692,-500.0,0.00049589,120]
[312653915,1706138117715,-944.82,0.00049589,120]
[312653916,1706138117738,-500.0,0.00049589,120]
[312653917,1706138117761,-500.0,0.00049589,120]
[312653918,1706138117785,-1084.21,0.00049589,120]
[312653919,1706138117807,-500.0,0.00049589,120]
[312653920,1706138117830,-516.4,0.00049589,120]
[312653921,1706138117854,-597.63,0.00049589,120]
[312653922,1706138117878,-500.0,0.00049589,120]
[312653923,1706138117903,-576.59,0.00049589,120]
[312653924,1706138117930,-500.0,0.00049589,120]
[312653925,1706138117954,-500.0,0.00049589,120]
[312653926,1706138117977,-500.0,0.00049589,120]
[312653927,1706138118000,-500.0,0.00049589,120]
[312653928,1706138118023,-500.0,0.00049589,120]
[312653929,1706138118045,-500.0,0.00049589,120]
[312653930,1706138118067,-500.0,0.00049589,120]
[312653931,1706138118090,-100000.0,0.000496,60]
[312653932,1706138118210,-500.0,0.00049863,60]
[312653933,1706138118234,-500.0,0.00049863,120]
[312653934,1706138118266,-553.79981414,0.00049863,120]
[312653935,1706138118290,-600.0,0.00049863,120]
[312653936,1706138118314,-276.63278581,0.00049863,120]
[312653937,1706138118337,-500.0,0.00049863,120]
[312653938,1706138118362,-500.0,0.00049863,120]
[312653939,1706138118385,-500.0,0.00049863,120]
[312653940,1706138118408,-500.0,0.00049863,120]
[312653941,1706138118432,-500.0,0.00049863,120]
[312653942,1706138118456,-500.0,0.00049863,120]
[312653943,1706138118480,-312.14486717,0.00049863,120]
[312653944,1706138118503,-500.0,0.00049863,120]
[312653945,1706138118527,-521.65,0.00049863,120]
[312653946,1706138118550,-500.0,0.00049863,120]
[312653947,1706138118574,-500.0,0.00049863,120]
[312653948,1706138118597,-1611.84,0.00049863,120]
[312653949,1706138118621,-500.0,0.00049863,120]
[312653950,1706138118645,-500.0,0.00049863,120]
[312653951,1706138118669,-500.0,0.00049863,120]
[312653952,1706138118693,-500.0,0.00049863,120]
[312653953,1706138118718,-500.0,0.00049863,120]
[312653954,1706138118741,-500.0,0.00049863,120]
[312653955,1706138118766,-500.0,0.00049863,120]
[312653956,1706138118790,-507.05087213,0.00049863,120]
[312653957,1706138118814,-585.15771854,0.00049863,120]
[312653958,1706138118839,-500.0,0.00049863,120]
[312653959,1706138118863,-500.0,0.00049863,120]
[312653960,1706138118887,-500.0,0.00049863,120]
[312653961,1706138118912,-500.0,0.00049863,120]
[312653962,1706138118935,-560.55,0.00049863,120]
[312653963,1706138118958,-500.0,0.00049863,120]
[312653964,1706138118982,-500.0,0.00049863,120]
[312653965,1706138119006,-500.0,0.00049863,120]
[312653966,1706138119030,-500.0,0.00049863,120]
[312653967,1706138119054,-500.0,0.00049863,120]
[312653968,1706138119080,-500.0,0.00049863,120]
[312653969,1706138119104,-500.0,0.00049863,120]
[312653970,1706138119129,-500.0,0.00049863,120]
[312653971,1706138119153,-500.0,0.00049863,120]
[312653972,1706138119178,-500.0,0.00049863,120]
[312653973,1706138119201,-821.7,0.00049863,120]
[312653974,1706138119225,-500.0,0.00049863,120]
[312653975,1706138119248,-542.1,0.00049863,120]
[312653976,1706138119274,-674.55,0.00049863,120]
[312653977,1706138119297,-500.0,0.00049863,120]
[312653978,1706138119321,-500.0,0.00049863,120]
[312653979,1706138119344,-499.84217963,0.00049863,120]
[312653980,1706138119368,-500.0,0.00049863,120]
[312653981,1706138119390,-500.0,0.00049863,120]
[312653982,1706138119413,-576.2,0.00049863,120]
[312653983,1706138119436,-500.0,0.00049863,120]
[312653984,1706138119460,-500.0,0.00049863,120]
[312653985,1706138119503,-500.0,0.00049863,120]
[312653986,1706138119527,-500.0,0.00049863,120]
[312653987,1706138119551,-500.0,0.00049863,120]
[312653988,1706138119575,-500.0,0.00049863,120]
[312653989,1706138119597,-500.0,0.00049863,120]
[312653990,1706138119619,-500.0,0.00049863,120]
[312653991,1706138119641,-500.0,0.00049863,120]
[312653992,1706138119662,-266.92231195,0.00049863,120]
[312653993,1706138119686,-500.0,0.00049863,120]
[312653994,1706138119709,-500.0,0.00049863,120]
[312653995,1706138119733,-500.0,0.00049863,120]
[312653996,1706138119756,-500.0,0.00049863,120]
[312653997,1706138119779,-708.29,0.00049863,120]
[312653998,1706138119801,-404.71567234,0.00049863,120]
[312653999,1706138119824,-500.0,0.00049863,120]
[312654000,1706138119847,-500.0,0.00049863,120]
[312654001,1706138119869,-500.0,0.00049863,120]
[312654002,1706138119893,-500.0,0.00049863,120]
[312654003,1706138119920,-500.0,0.00049863,120]
[312654004,1706138119942,-500.0,0.00049863,120]
[312654005,1706138119967,-731.74,0.00049863,120]
[312654006,1706138119990,-360.44400913,0.00049863,120]
[312654007,1706138120012,-500.0,0.00049863,120]
[312654008,1706138120035,-628.3,0.00049863,120]
[312654009,1706138120059,-500.0,0.00049863,120]
[312654010,1706138120081,-500.0,0.00049863,120]
[312654011,1706138120105,-500.0,0.00049863,120]
[312654012,1706138120127,-500.0,0.00049863,120]
[312654013,1706138120151,-500.0,0.00049863,120]
[312654014,1706138120176,-500.0,0.00049863,120]
[312654015,1706138120198,-623.57,0.00049863,120]
[312654016,1706138120221,-500.0,0.00049863,120]
[312654017,1706138120244,-504.96,0.00049863,120]
[312654018,1706138120269,-500.0,0.00049863,120]
[312654019,1706138120293,-500.0,0.00049863,120]
[312654020,1706138120412,-500.0,0.00049863,120]
[312654021,1706138120436,-500.0,0.00049863,120]
[312654022,1706138120459,-500.0,0.00049863,120]
[312654023,1706138120484,-541.2,0.00049863,120]
[312654024,1706138120508,-500.0,0.00049863,120]
[312654025,1706138120531,-621.03,0.00049863,120]
[312654026,1706138120555,-500.0,0.00049863,120]
[312654027,1706138120580,-500.0,0.00049863,120]
[312654028,1706138120606,-500.0,0.00049863,120]
[312654029,1706138120630,-519.59,0.00049863,120]
[312654030,1706138120655,-500.0,0.00049863,120]
[312654031,1706138120680,-150.0,0.00049863,120]
[312654032,1706138120706,-500.0,0.00049863,120]
[312654033,1706138120730,-646.43,0.00049863,120]
[312654034,1706138120754,-500.0,0.00049863,120]
[312654035,1706138120778,-500.0,0.00049863,120]
[312654036,1706138120802,-500.0,0.00049863,120]
[312654037,1706138120827,-500.0,0.00049863,120]
[312654038,1706138120851,-500.0,0.00049863,120]
[312654039,1706138120875,-500.0,0.00049863,120]
[312654040,1706138120900,-1064.19,0.00049863,120]
[312654041,1706138120927,-500.0,0.00049863,120]
[312654042,1706138120963,-500.0,0.00049863,120]
[312654043,1706138120996,-500.0,0.00049863,120]
[312654044,1706138121027,-446.59823092,0.00049863,120]
[312654045,1706138121060,-500.0,0.00049863,120]
[312654046,1706138121094,-593.16,0.00049863,120]
[312654047,1706138121122,-500.0,0.00049863,120]
[312654048,1706138121146,-500.0,0.00049863,120]
[312654049,1706138121170,-500.0,0.00049863,120]
[312654050,1706138121195,-500.0,0.00049863,120]
[312654051,1706138121219,-1350.89,0.00049863,120]
[312654052,1706138121244,-1635.66,0.00049863,120]
[312654053,1706138121269,-216.62046933,0.00049863,120]
[312654054,1706138121293,-2252.64,0.00049863,120]
[312654055,1706138121318,-500.0,0.00049863,120]
[312654056,1706138121341,-468.89160707,0.00049863,120]
[312654057,1706138121365,-500.0,0.00049863,120]
[312654058,1706138121390,-500.0,0.00049863,120]
[312654059,1706138121415,-500.0,0.00049863,120]
[312654060,1706138121440,-500.0,0.00049863,120]
[312654061,1706138121463,-502.75,0.00049863,120]
[312654062,1706138121488,-500.0,0.00049863,120]
[312654063,1706138121512,-840.87,0.00049863,120]
[312654064,1706138121538,-983.25,0.00049863,120]
[312654065,1706138121562,-1320.33,0.00049863,120]
[312654066,1706138121587,-500.0,0.00049863,120]
[312654067,1706138121610,-500.0,0.00049863,120]
[312654068,1706138121633,-500.0,0.00049863,120]
[312654069,1706138121657,-3361.98,0.00049863,120]
[312654070,1706138121679,-500.0,0.00049863,120]
[312654071,1706138121703,-500.0,0.00049863,120]
[312654072,1706138121727,-500.0,0.00049863,120]
[312654073,1706138121749,-500.0,0.00049863,120]
[312654074,1706138121772,-500.0,0.00049863,120]
[312654075,1706138121801,-526.23920267,0.00049863,120]
[312654076,1706138121825,-500.0,0.00049863,120]
[312654077,1706138121847,-500.0,0.00049863,120]
[312654078,1706138121872,-500.0,0.00049863,120]
[312654079,1706138121895,-500.0,0.00049863,120]
[312654080,1706138121917,-500.0,0.00049863,120]
[312654081,1706138121939,-933.63,0.00049863,120]
[312654082,1706138121963,-500.0,0.00049863,120]
[312654083,1706138121988,-304.53474845,0.00049863,120]
[312654084,1706138122013,-500.0,0.00049863,120]
[312654085,1706138122036,-500.0,0.00049863,120]
[312654086,1706138122059,-569.81,0.00049863,120]
[312654087,1706138122082,-519.09,0.00049863,120]
[312654088,1706138122106,-771.42,0.00049863,120]
[312654089,1706138122130,-500.0,0.00049863,120]
[312654090,1706138122152,-500.0,0.00049863,120]
[312654091,1706138122177,-500.0,0.00049863,120]
[312654092,1706138122201,-500.0,0.00049863,120]
[312654093,1706138122226,-500.0,0.00049863,60]
[312654094,1706138122249,-500.0,0.00049863,120]
[312654095,1706138122275,-500.0,0.00049863,120]
[312654096,1706138122299,-597.33,0.00049863,120]
[312654097,1706138122322,-500.0,0.00049863,120]
[312654098,1706138122347,-500.0,0.00049863,120]
[312654099,1706138122370,-500.0,0.00049863,120]
[312654100,1706138122394,-679.43,0.00049863,120]
[312654101,1706138122416,-500.0,0.00049863,120]
[312654102,1706138122441,-500.0,0.00049863,120]
[312654103,1706138122465,-500.0,0.00049863,120]
[312654104,1706138122603,-500.0,0.00049863,120]
[312654105,1706138122628,-500.0,0.00049863,120]
[312654106,1706138122652,-500.0,0.00049863,120]
[312654107,1706138122676,-541.66,0.00049863,120]
[312654108,1706138122700,-500.0,0.00049863,120]
[312654109,1706138122726,-500.0,0.00049863,120]
[312654110,1706138122750,-735.65,0.00049863,120]
[312654111,1706138122774,-554.29,0.00049863,120]
[312654112,1706138122798,-500.0,0.00049863,120]
[312654113,1706138122821,-500.0,0.00049863,120]
[312654114,1706138122846,-944.82,0.00049863,120]
[312654115,1706138122870,-442.50034307,0.00049863,120]
[312654116,1706138122893,-500.0,0.00049863,120]
[312654117,1706138122916,-1084.21,0.00049863,120]
[312654118,1706138122941,-500.0,0.00049863,120]
[312654119,1706138122965,-516.4,0.00049863,120]
[312654120,1706138122989,-597.63,0.00049863,120]
[312654121,1706138123013,-500.0,0.00049863,120]
[312654122,1706138123038,-576.59,0.00049863,120]
[312654123,1706138123061,-500.0,0.00049863,120]
[312654124,1706138123084,-500.0,0.00049863,120]
[312654125,1706138123107,-500.0,0.00049863,120]
[312654126,1706138123132,-500.0,0.00049863,120]
[312654127,1706138123155,-500.0,0.00049863,120]
[312654128,1706138123180,-1352.52629222,0.000499,120]
[312654129,1706138123203,-228.0,0.0004991,120]
[312654130,1706138123227,-150.5,0.0004991,120]
[312654131,1706138123252,-450.0,0.0004991,120]
[312654132,1706138123280,-607.0,0.0004991,120]
[312654133,1706138123303,-228.0,0.0004992,120]
[312654134,1706138123326,-150.5,0.0004992,120]
[312654135,1706138123352,-450.0,0.0004992,120]
[312654136,1706138123376,-607.0,0.0004992,120]
[312654137,1706138123398,-150.5,0.0004992,120]
[312654138,1706138123421,-228.0,0.0004992,120]
[312654139,1706138123444,-450.0,0.0004992,120]
[312654140,1706138123467,-607.0,0.0004992,120]
[312654141,1706138123490,-161.96,0.0004993,120]
[312654142,1706138123513,-228.0,0.0004993,120]
[312654143,1706138123536,-150.5,0.0004993,120]
[312654144,1706138123559,-450.0,0.0004993,120]
[312654145,1706138123582,-607.0,0.0004993,120]
[312654146,1706138123606,-228.0,0.0004993,120]
[312654147,1706138123630,-150.5,0.0004993,120]
[312654148,1706138123653,-450.0,0.0004993,120]
[312654149,1706138123680,-607.0,0.0004993,120]
[312654150,1706138123704,-232.12,0.0004998,120]
[312654151,1706138123728,-450.0,0.0004998,120]
[312654152,1706138123753,-607.05,0.0004998,120]
[312654153,1706138123777,-202.67,0.0004999,120]
[312654154,1706138123800,-228.0,0.0004999,120]
[312654155,1706138123823,-450.0,0.0004999,120]
[312654156,1706138123847,-607.0,0.0004999,120]
[312654157,1706138123870,-200.0,0.0005,120]
[312654158,1706138123894,-244792.89489355,0.0005,120]
[312654159,1706138128117,-500.0,0.00049863,120]
[312654160,1706138128141,-499500.0,0.0005,120]
[312654161,1706138132168,-255707.10510645,0.0005,120]
[312654162,1706138132193,-249.78379975,0.0005,120]
[312654163,1706138132218,-152.20431378,0.00050022,60]
[312654164,1706138132243,-500.0,0.00050136,60]
[312654165,1706138132268,-500.0,0.00050136,120]
[312654166,1706138132292,-600.0,0.00050136,120]
[312654167,1706138132316,-502.11744185,0.00050136,120]
[312654168,1706138132340,-500.0,0.00050136,120]
[312654169,1706138132364,-501.11071524,0.00050136,120]
[312654170,1706138132388,-500.0,0.00050136,120]
[312654171,1706138132411,-500.0,0.00050136,120]
[312654172,1706138132438,-608.54103644,0.00050136,120]
[312654173,1706138132462,-500.0,0.00050136,120]
[312654174,1706138132487,-521.65,0.00050136,120]
[312654175,1706138132510,-500.0,0.00050136,120]
[312654176,1706138132535,-500.0,0.00050136,120]
[312654177,1706138132559,-1611.84,0.00050136,120]
[312654178,1706138132583,-500.0,0.00050136,120]
[312654179,1706138132606,-500.0,0.00050136,120]
[312654180,1706138132631,-326.62571704,0.00050136,120]
[312654181,1706138132655,-500.0,0.00050136,120]
[312654182,1706138132678,-500.0,0.00050136,120]
[312654183,1706138132700,-500.0,0.00050136,120]
[312654184,1706138132725,-500.0,0.00050136,120]
[312654185,1706138132748,-500.0,0.00050136,120]
[312654186,1706138132772,-500.0,0.00050136,120]
[312654187,1706138132796,-500.0,0.00050136,120]
[312654188,1706138132820,-500.0,0.00050136,120]
[312654189,1706138132842,-560.55,0.00050136,120]
[312654190,1706138132865,-500.0,0.00050136,120]
[312654191,1706138132888,-500.0,0.00050136,120]
[312654192,1706138132912,-500.0,0.00050136,120]
[312654193,1706138132935,-500.0,0.00050136,120]
[312654194,1706138132958,-500.0,0.00050136,120]
[312654195,1706138132981,-500.0,0.00050136,120]
[312654196,1706138133007,-503.82355574,0.00050136,120]
[312654197,1706138133032,-500.0,0.00050136,120]
[312654198,1706138133058,-500.0,0.00050136,120]
[312654199,1706138133083,-500.0,0.00050136,120]
[312654200,1706138133106,-821.7,0.00050136,120]
[312654201,1706138133128,-500.0,0.00050136,120]
[312654202,1706138133151,-542.1,0.00050136,120]
[312654203,1706138133174,-674.55,0.00050136,120]
[312654204,1706138133197,-500.0,0.00050136,120]
[312654205,1706138133220,-500.0,0.00050136,120]
[312654206,1706138133244,-500.0,0.00050136,120]
[312654207,1706138133271,-500.0,0.00050136,120]
[312654208,1706138133295,-576.2,0.00050136,120]
[312654209,1706138133317,-500.0,0.00050136,120]
[312654210,1706138133340,-500.0,0.00050136,120]
[312654211,1706138133363,-500.0,0.00050136,120]
[312654212,1706138133387,-500.0,0.00050136,120]
[312654213,1706138133414,-500.0,0.00050136,120]
[312654214,1706138133437,-500.0,0.00050136,120]
[312654215,1706138133462,-500.0,0.00050136,120]
[312654216,1706138133485,-500.0,0.00050136,120]
[312654217,1706138133510,-500.0,0.00050136,120]
[312654218,1706138133533,-500.0,0.00050136,120]
[312654219,1706138133555,-500.0,0.00050136,120]
[312654220,1706138133579,-500.0,0.00050136,120]
[312654221,1706138133602,-708.29,0.00050136,120]
[312654222,1706138133626,-500.0,0.00050136,120]
[312654223,1706138133650,-500.0,0.00050136,120]
[312654224,1706138133673,-500.0,0.00050136,120]
[312654225,1706138133698,-500.0,0.00050136,120]
[312654226,1706138133720,-425.98093712,0.00050136,120]
[312654227,1706138133743,-500.0,0.00050136,120]
[312654228,1706138133767,-731.74,0.00050136,120]
[312654229,1706138133789,-500.0,0.00050136,120]
[312654230,1706138133812,-628.3,0.00050136,120]
[312654231,1706138133835,-500.0,0.00050136,120]
[312654232,1706138133858,-500.0,0.00050136,120]
[312654233,1706138133882,-500.0,0.00050136,120]
[312654234,1706138133905,-500.0,0.00050136,120]
[312654235,1706138134000,-500.0,0.00050136,120]
[312654236,1706138134043,-500.0,0.00050136,120]
[312654237,1706138134069,-623.57,0.00050136,120]
[312654238,1706138134094,-604.61706057,0.00050136,120]
[312654239,1706138134117,-504.96,0.00050136,120]
[312654240,1706138134141,-500.0,0.00050136,120]
[312654241,1706138134166,-500.0,0.00050136,120]
[312654242,1706138134190,-500.0,0.00050136,120]
[312654243,1706138134214,-500.0,0.00050136,120]
[312654244,1706138134237,-500.0,0.00050136,120]
[312654245,1706138134263,-541.2,0.00050136,120]
[312654246,1706138134286,-500.0,0.00050136,120]
[312654247,1706138134309,-621.03,0.00050136,120]
[312654248,1706138134334,-500.0,0.00050136,120]
[312654249,1706138134360,-500.0,0.00050136,120]
[312654250,1706138134384,-500.0,0.00050136,120]
[312654251,1706138134408,-519.59,0.00050136,120]
[312654252,1706138134432,-500.0,0.00050136,120]
[312654253,1706138134456,-150.0,0.00050136,120]
[312654254,1706138134481,-500.0,0.00050136,120]
[312654255,1706138134504,-646.43,0.00050136,120]
[312654256,1706138134528,-500.0,0.00050136,120]
[312654257,1706138134552,-500.0,0.00050136,120]
[312654258,1706138134576,-500.0,0.00050136,120]
[312654259,1706138134601,-500.0,0.00050136,120]
[312654260,1706138134626,-500.0,0.00050136,120]
[312654261,1706138134650,-500.0,0.00050136,120]
[312654262,1706138134674,-1064.19,0.00050136,120]
[312654263,1706138134698,-500.0,0.00050136,120]
[312654264,1706138134722,-500.0,0.00050136,120]
[312654265,1706138134746,-500.0,0.00050136,120]
[312654266,1706138134770,-593.16,0.00050136,120]
[312654267,1706138134793,-500.0,0.00050136,120]
[312654268,1706138134817,-500.0,0.00050136,120]
[312654269,1706138134842,-500.0,0.00050136,120]
[312654270,1706138134865,-500.0,0.00050136,120]
[312654271,1706138134888,-1350.89,0.00050136,120]
[312654272,1706138134912,-1635.66,0.00050136,120]
[312654273,1706138134936,-2252.64,0.00050136,120]
[312654274,1706138134959,-500.0,0.00050136,120]
[312654275,1706138134982,-296.9397799,0.00050136,120]
[312654276,1706138135005,-500.0,0.00050136,120]
[312654277,1706138135030,-500.0,0.00050136,120]
[312654278,1706138135053,-500.0,0.00050136,120]
[312654279,1706138135076,-502.75,0.00050136,120]
[312654280,1706138135101,-500.0,0.00050136,120]
[312654281,1706138135126,-840.87,0.00050136,120]
[312654282,1706138135149,-1320.33,0.00050136,120]
[312654283,1706138135173,-500.0,0.00050136,120]
[312654284,1706138135198,-983.25,0.00050136,120]
[312654285,1706138135222,-500.0,0.00050136,120]
[312654286,1706138135245,-500.0,0.00050136,120]
[312654287,1706138135272,-3361.98,0.00050136,120]
[312654288,1706138135298,-500.0,0.00050136,120]
[312654289,1706138135322,-501.82294217,0.00050136,120]
[312654290,1706138135346,-382.91229985,0.00050136,120]
[312654291,1706138135369,-500.0,0.00050136,120]
[312654292,1706138135394,-500.0,0.00050136,120]
[312654293,1706138135418,-500.0,0.00050136,120]
[312654294,1706138135443,-500.0,0.00050136,120]
[312654295,1706138135466,-500.0,0.00050136,120]
[312654296,1706138135490,-500.0,0.00050136,120]
[312654297,1706138135515,-500.0,0.00050136,120]
[312654298,1706138135539,-933.63,0.00050136,120]
[312654299,1706138135563,-500.0,0.00050136,120]
[312654300,1706138135587,-500.0,0.00050136,120]
[312654301,1706138135610,-500.0,0.00050136,120]
[312654302,1706138135634,-569.81,0.00050136,120]
[312654303,1706138135658,-519.09,0.00050136,120]
[312654304,1706138135682,-771.42,0.00050136,120]
[312654305,1706138135707,-500.0,0.00050136,120]
[312654306,1706138135730,-601.03512268,0.00050136,120]
[312654307,1706138135752,-500.0,0.00050136,120]
[312654308,1706138135775,-500.0,0.00050136,120]
[312654309,1706138135799,-500.0,0.00050136,60]
[312654310,1706138135822,-500.0,0.00050136,120]
[312654311,1706138135845,-500.0,0.00050136,120]
[312654312,1706138135957,-597.33,0.00050136,120]
[312654313,1706138135981,-500.0,0.00050136,120]
[312654314,1706138136004,-500.0,0.00050136,120]
[312654315,1706138136028,-500.0,0.00050136,120]
[312654316,1706138136052,-679.43,0.00050136,120]
[312654317,1706138136075,-500.0,0.00050136,120]
[312654318,1706138136101,-500.0,0.00050136,120]